bitfinex/quotes_SOLUSD_20260105
["timestamp","ask_amount","ask_price","bid_price","bid_amount"]
[1767621691071,0.68388372,133.75,133.72,2.28902334]
[1767621691258,0.68388372,133.75,133.69,7.47987885]
[1767621691459,0.68388372,133.75,133.72,2.28902334]
[1767621691867,8.16058643,133.75,133.72,2.28902334]
[1767621693572,0.68388372,133.75,133.72,2.28902334]
[1767621693880,7.47642445,133.76,133.72,3.01056283]
[1767621694959,21.79452269,133.77,133.73,0.72153949]
[1767621695174,21.79452269,133.77,133.74,2.28902334]
[1767621695472,8.15452269,133.77,133.74,2.28902334]
[1767621695677,8.15452269,133.77,133.74,2.25902334]
[1767621695982,8.15452269,133.77,133.73,2.98056283]
[1767621696160,103.8,133.78,133.74,2.28902334]
[1767621696494,0.2,133.78,133.74,2.28902334]
[1767621696767,7.67504062,133.78,133.74,2.28902334]
[1767621697149,7.67504062,133.78,133.74,3.01056283]
[1767621698068,7.67504062,133.78,133.74,0.72153949]
[1767621698273,8.35384013,133.78,133.74,3.01056283]
[1767621698468,8.35384013,133.78,133.74,3.2002765]
[1767621700153,0.2,133.78,133.75,3.2002765]
[1767621700360,0.2,133.78,133.76,2.47873701]
[1767621701380,7.67505641,133.78,133.75,3.2002765]
[1767621702965,7.67505641,133.78,133.75,0.72153949]
[1767621703167,0.2,133.78,133.75,3.2002765]
[1767621703481,0.67879951,133.77,133.75,2.47873701]
[1767621703670,0.67879951,133.77,133.74,3.2002765]
[1767621703871,8.35388721,133.78,133.74,3.2002765]
[1767621705160,8.35388721,133.78,133.75,2.47873701]
[1767621705359,8.35388721,133.78,133.74,0.72153949]
[1767621705576,8.35388721,133.78,133.75,2.47873701]
[1767621705871,0.87879951,133.78,133.75,2.47873701]
[1767621706073,0.87879951,133.78,133.75,3.2002765]
[1767621706579,0.87879951,133.78,133.76,2.47873701]
[1767621706580,0.2,133.78,133.76,2.47873701]
[1767621707083,0.2,133.78,133.75,3.2002765]
[1767621708366,0.2,133.78,133.76,0.72153949]
[1767621708574,0.2,133.78,133.76,3.2002765]
[1767621709179,0.2,133.78,133.77,2.47873701]
[1767621709569,0.2,133.78,133.75,0.72153949]
[1767621709769,0.2,133.78,133.76,3.2002765]
[1767621709978,0.2,133.78,133.63,37.41639573]
[1767621709979,0.87879951,133.78,133.75,3.2002765]
[1767621710182,0.2,133.78,133.76,0.72153949]
[1767621710369,0.2,133.78,133.76,3.2002765]
[1767621710880,0.2,133.79,133.77,3.2002765]
[1767621711277,0.2,133.79,133.78,2.47873701]
[1767621712477,0.2,133.8,133.78,3.2002765]
[1767621712668,0.2,133.8,133.78,0.72153949]
[1767621712870,0.2,133.8,133.78,3.2002765]
[1767621713271,0.57879951,133.81,133.78,0.72153949]
[1767621713571,0.57879951,133.81,133.78,3.2002765]
[1767621713990,0.2,133.82,133.79,2.47873701]
[1767621714188,0.2,133.82,133.79,2.44873701]
[1767621715074,0.2,133.82,133.79,3.14018856]
[1767621715262,0.2,133.82,133.79,3.17018856]
[1767621715680,0.2,133.82,133.79,0.69145155]
[1767621715885,0.2,133.82,133.79,3.17018856]
[1767621717683,0.2,133.82,133.77,2.47873701]
[1767621717684,0.67590611,133.8,133.77,2.47873701]
[1767621718369,0.67590611,133.8,133.76,1.89145155]
[1767621718570,0.67590611,133.8,133.77,2.47873701]
[1767621719784,0.67590611,133.8,133.77,0.69145155]
[1767621719785,8.14980821,133.8,133.77,0.69145155]
[1767621720167,0.87590611,133.82,133.79,2.47873701]
[1767621720382,0.87590611,133.82,133.78,0.69145155]
[1767621720585,0.87590611,133.82,133.79,2.47873701]
[1767621721084,0.66588393,133.84,133.81,0.69170695]
[1767621721485,0.66588393,133.84,133.81,3.17044396]
[1767621722385,0.66588393,133.85,133.81,3.17044396]
[1767621722583,0.66588393,133.85,133.82,2.47873701]
[1767621722989,0.66588393,133.85,133.81,3.17044396]
[1767621723293,0.66588393,133.83,133.79,2.47873701]
[1767621723473,0.66588393,133.83,133.79,0.55527679]
[1767621723994,0.66588393,133.83,133.79,3.0340138]
[1767621724880,0.66588393,133.81,133.77,0.55527679]
[1767621725085,3.14462094,133.81,133.77,0.55527679]
[1767621725493,0.66588393,133.81,133.77,3.0340138]
[1767621725686,0.66588393,133.8,133.75,13.62]
[1767621725893,0.66588393,133.8,133.76,2.47873701]
[1767621726080,0.66588393,133.8,133.76,3.0340138]
[1767621726783,8.13982264,133.8,133.76,3.0340138]
[1767621727792,0.66588393,133.8,133.76,3.0340138]
[1767621728690,0.66588393,133.8,133.76,0.55527679]
[1767621728691,8.13975109,133.8,133.76,0.55527679]
[1767621729077,0.66588393,133.8,133.76,3.0340138]
[1767621731205,8.13984004,133.8,133.76,3.0340138]
[1767621731399,0.66588393,133.79,133.75,2.47873701]
[1767621731596,0.66588393,133.76,133.71,0.74788721]
[1767621731798,0.66588393,133.76,133.72,3.0340138]
[1767621731988,0.66588393,133.77,133.73,3.0340138]
[1767621732195,3.14462094,133.79,133.74,3.0340138]
[1767621732389,0.66588393,133.78,133.74,3.0340138]
[1767621732904,0.66588393,133.78,133.74,10.51108288]
[1767621733402,0.66588393,133.78,133.74,3.0340138]
[1767621734020,0.66588393,133.78,133.75,2.47873701]
[1767621735213,10.61863381,133.8,133.75,3.0340138]
[1767621735406,8.1398968,133.8,133.75,3.0340138]
[1767621735910,8.1398968,133.8,133.75,0.55527679]
[1767621736109,0.66588393,133.79,133.75,0.55527679]
[1767621736283,0.66588393,133.79,133.75,3.0340138]
[1767621736612,2.47873701,133.81,133.75,3.0340138]
[1767621736613,10.61807631,133.81,133.77,0.55527679]
[1767621737793,0.66588393,133.81,133.77,3.0340138]
[1767621738205,0.66588393,133.81,133.77,0.55527679]
[1767621738410,0.66588393,133.8,133.75,0.55527679]
[1767621738712,7.47339401,133.81,133.77,0.55527679]
[1767621738899,8.13927794,133.81,133.77,0.55527679]
[1767621739693,0.66588393,133.8,133.75,4.42743063]
[1767621740707,0.66588393,133.79,133.75,0.55527679]
[1767621740910,0.66588393,133.79,133.75,4.42743063]
[1767621741323,4.53803777,133.8,133.76,0.55527679]
[1767621742117,8.14011491,133.8,133.76,0.55527679]
[1767621742418,12.01226875,133.8,133.76,0.55527679]
[1767621742593,0.66588393,133.8,133.76,4.42743063]
[1767621744199,0.66588393,133.79,133.75,0.55527679]
[1767621744403,0.66588393,133.79,133.75,3.87215384]
[1767621745622,0.66588393,133.79,133.74,4.42743063]
[1767621746600,12.01219154,133.8,133.75,0.55527679]
[1767621746802,8.1400377,133.8,133.75,4.42743063]
[1767621749127,0.66588393,133.79,133.75,4.42743063]
[1767621750323,0.66588393,133.79,133.76,3.87215384]
[1767621750525,8.13933489,133.81,133.77,0.55527679]
[1767621750709,0.66588393,133.8,133.76,4.42743063]
[1767621751111,8.13984554,133.8,133.76,4.42743063]
[1767621753032,0.70477802,133.79,133.76,0.55527679]
[1767621753211,8.17918028,133.79,133.76,0.55527679]
[1767621755030,4.57693186,133.81,133.76,4.42743063]
[1767621755212,0.70477802,133.81,133.76,4.42743063]
[1767621756238,0.70477802,133.82,133.78,0.55527679]
[1767621756557,0.70477802,133.82,133.79,3.87215384]
[1767621758540,25.66809612,133.85,133.8,0.55527679]
[1767621758746,25.66809612,133.85,133.8,4.42743063]
[1767621758914,4.57693186,133.84,133.8,0.55527679]
[1767621759114,0.70477802,133.84,133.8,0.55527679]
[1767621759633,0.70477802,133.84,133.8,4.42743063]
[1767621759825,0.70477802,133.83,133.79,3.87215384]
[1767621760023,0.70477802,133.83,133.78,14.17527679]
[1767621760213,0.70477802,133.83,133.79,3.87215384]
[1767621760417,0.70477802,133.83,133.78,18.04743063]
[1767621761340,0.70477802,133.83,133.78,14.17527679]
[1767621761543,0.70477802,133.81,133.78,13.62]
[1767621761848,0.70477802,133.81,133.77,4.42743063]
[1767621763816,0.70477802,133.81,133.77,11.9028598]
[1767621764940,0.70477802,133.83,133.78,4.42743063]
[1767621765146,0.70477802,133.83,133.79,3.87215384]
[1767621765945,0.70477802,133.83,133.79,4.42743063]
[1767621766241,0.70477802,133.83,133.8,0.55527679]
[1767621766441,0.70477802,133.83,133.79,4.42743063]
[1767621766643,0.70477802,133.83,133.79,0.55527679]
[1767621766840,0.70477802,133.82,133.78,0.55527679]
[1767621767345,0.70477802,133.82,133.77,1.75527679]
[1767621767552,0.70477802,133.82,133.77,5.62743063]
[1767621768033,12.04996009,133.82,133.77,5.62743063]
[1767621768236,0.70477802,133.81,133.77,0.55527679]
[1767621768628,0.70477802,133.81,133.77,4.42743063]
[1767621769445,0.70477802,133.81,133.77,0.55527679]
[1767621769629,0.70477802,133.81,133.77,4.42743063]
[1767621771933,0.70477802,133.81,133.77,11.90287744]
[1767621772561,0.70477802,133.81,133.78,3.14715384]
[1767621772762,0.70477802,133.81,133.73,0.68670817]
[1767621772763,0.6793972,133.77,133.73,0.68670817]
[1767621772955,4.55155104,133.77,133.73,0.68670817]
[1767621773259,0.6793972,133.77,133.73,0.68670817]
[1767621773839,4.55155104,133.77,133.73,0.68670817]
[1767621774935,4.55155104,133.76,133.73,0.68670817]
[1767621776360,3.87215384,133.77,133.73,0.68670817]
[1767621776565,4.55155104,133.77,133.73,0.68670817]
[1767621777147,3.87215384,133.77,133.72,7.47797077]
[1767621777365,0.6793972,133.74,133.7,0.68670817]
[1767621777568,4.55155104,133.74,133.7,0.68670817]
[1767621777772,3.87215384,133.73,133.7,0.68670817]
[1767621777977,4.55155104,133.73,133.7,0.68670817]
[1767621780244,0.6793972,133.73,133.7,0.68670817]
[1767621781055,4.55155104,133.73,133.7,0.68670817]
[1767621781943,0.56970341,133.86,133.74,0.65830961]
[1767621782141,0.56970341,133.86,133.73,8.35013837]
[1767621782142,0.67314271,133.84,133.77,0.65830961]
[1767621782364,26.34688171,133.86,133.83,4.53046345]
[1767621782365,0.2,133.86,133.83,4.53046345]
[1767621782679,0.2,133.91,133.82,7.47247756]
[1767621782680,0.67314271,133.89,133.82,39.77428894]
[1767621782871,0.67314271,133.89,133.84,3.87215384]
[1767621783378,0.67314271,133.88,133.83,4.53046345]
[1767621783567,0.67314271,133.88,133.82,8.13078717]
[1767621783769,0.67314271,133.88,133.84,3.87215384]
[1767621784151,0.67314271,133.88,133.83,0.65830961]
[1767621784358,0.67314271,133.88,133.85,3.87215384]
[1767621785772,14.29314271,133.88,133.85,3.87215384]
[1767621786569,14.29314271,133.88,133.86,3.87215384]
[1767621786789,0.67314271,133.87,133.86,3.87215384]
[1767621786962,13.62,133.88,133.86,3.87215384]
[1767621787957,7.46887379,133.89,133.86,3.87215384]
[1767621788157,7.46887379,133.89,133.79,45.72125466]
[1767621788158,5.51529,133.86,133.78,3.87215384]
[1767621788358,1.8565881,133.84,133.78,3.87215384]
[1767621788584,1.8565881,133.84,133.78,4.53046345]
[1767621788776,11.34432002,133.83,133.78,3.87215384]
[1767621789100,0.67314271,133.82,133.78,3.87215384]
[1767621789271,13.62,133.81,133.78,3.87215384]
[1767621789662,13.62,133.81,133.77,0.65830961]
[1767621790061,0.67314271,133.82,133.77,12.00557441]
[1767621790286,13.62,133.81,133.79,3.87215384]
[1767621790594,5.51529,133.88,133.79,3.87215384]
[1767621790595,0.2,133.92,133.84,0.65830961]
[1767621790759,0.1,133.97,133.9,0.65830961]
[1767621791075,0.67208831,133.99,133.95,3.87215384]
[1767621791274,0.67208831,133.99,133.93,0.65830961]
[1767621791275,0.67208831,133.99,133.96,3.87215384]
[1767621791476,0.67208831,133.99,133.96,3.84215384]
[1767621791781,0.67208831,133.99,133.93,0.65830961]
[1767621791964,0.67208831,133.99,133.95,3.87215384]
[1767621792164,0.67208831,133.99,133.96,3.87215384]
[1767621792464,14.29208831,133.99,133.96,9.85757135]
[1767621793082,0.1,134.03,133.97,9.85757135]
[1767621793083,0.77314271,134.03,133.97,9.85757135]
[1767621793274,0.56874726,134.02,133.97,0.65830961]
[1767621793585,0.56874726,134.02,133.99,9.85757135]
[1767621794281,8.03038158,134.02,133.97,0.65830961]
[1767621794581,7.46163432,134.02,133.94,0.65830961]
[1767621794765,14.39314271,134.03,133.99,9.85757135]
[1767621794967,0.1,134.03,134.02,9.85757135]
[1767621795266,13.62,134.07,134.02,9.85757135]
[1767621795267,6.93435253,134.07,134.02,9.85757135]
[1767621795480,6.93435253,134.07,134.03,9.85757135]
[1767621795679,6.93435253,134.07,134.01,0.65830961]
[1767621795873,6.93435253,134.07,134.03,9.85757135]
[1767621796276,13.62,134.09,134.03,0.65830961]
[1767621796482,23.47757135,134.09,134.03,10.51588096]
[1767621796685,9.85757135,134.09,134.03,10.51588096]
[1767621796865,9.85757135,134.09,134.03,0.65830961]
[1767621797177,9.85757135,134.08,134.03,10.51588096]
[1767621797358,10.33100914,134.08,134.03,10.51588096]
[1767621797567,0.47343779,134.08,134.04,9.85757135]
[1767621798083,7.93055934,134.1,134.04,9.85757135]
[1767621798412,7.45662358,134.11,134.07,9.85757135]
[1767621798575,7.45545366,134.13,134.05,0.65830961]
[1767621798880,28.04422746,134.14,134.07,0.65830961]
[1767621798881,7.45492174,134.14,134.07,0.65830961]
[1767621799079,6.05649072,134.13,134.08,6.05649072]
[1767621799278,6.05649072,134.13,134.08,6.71480033]
[1767621799488,7.45492174,134.14,134.08,0.65830961]
[1767621799489,6.05649072,134.12,134.08,0.65830961]
[1767621799688,7.45492174,134.14,134.08,0.65830961]
[1767621799991,6.05649072,134.1,134.05,0.65830961]
[1767621800378,7.45658398,134.11,134.05,6.71480033]
[1767621800690,13.5130747,134.11,134.05,6.71480033]
[1767621800863,13.5130747,134.11,134.06,0.65830961]
[1767621801393,7.45600954,134.12,134.06,0.65830961]
[1767621801565,6.05649072,134.11,134.06,0.65830961]
[1767621801972,13.51250026,134.12,134.06,0.65830961]
[1767621802191,6.05649072,134.1,134.06,0.65830961]
[1767621802496,6.05649072,134.07,134.04,0.65830961]
[1767621803284,7.45600954,134.12,134.04,0.65830961]
[1767621803584,6.05649072,134.1,134.05,0.65830961]
[1767621803770,7.45600954,134.12,134.05,0.65830961]
[1767621803977,6.05649072,134.1,134.05,0.65830961]
[1767621804386,6.05649072,134.09,134.05,0.65830961]
[1767621805591,6.05649072,134.08,134.05,0.65830961]
[1767621807890,13.51479405,134.08,134.05,0.65830961]
[1767621808091,6.05649072,134.09,134.05,0.65830961]
[1767621809180,6.05649072,134.06,134.02,0.65830961]
[1767621809376,7.45936051,134.06,134.0,0.65830961]
[1767621809771,7.45936051,134.06,134.01,0.65830961]
[1767621810479,13.51585123,134.06,134.01,0.65830961]
[1767621810775,6.05649072,134.05,134.01,0.65830961]
[1767621811295,6.05649072,134.04,134.01,0.65830961]
[1767621812298,26.10772691,134.06,134.01,0.65830961]
[1767621812299,6.05649072,134.05,134.01,0.65830961]
[1767621813598,6.05649072,134.04,134.01,0.65830961]
[1767621814178,6.05649072,134.02,134.01,0.65830961]
[1767621814379,39.70772691,134.06,133.98,0.65586396]
[1767621814580,6.05649072,134.07,133.99,0.65586396]
[1767621814794,6.05649072,134.07,134.02,0.65586396]
[1767621815478,6.05649072,134.06,134.02,0.65586396]
[1767621815978,13.51570739,134.07,134.02,0.65586396]
[1767621816891,13.51570739,134.07,134.01,0.65586396]
[1767621817089,13.51570739,134.07,134.01,6.71235468]
[1767621817285,13.51570739,134.07,134.01,0.65586396]
[1767621817494,26.10434631,134.08,134.01,6.71235468]
[1767621817791,6.05649072,134.07,134.01,6.71235468]
[1767621818478,7.45934656,134.06,134.01,6.71235468]
[1767621820002,7.45934656,134.06,134.02,0.65586396]
[1767621820300,7.45934656,134.06,134.01,6.05649072]
[1767621820301,6.05649072,134.04,134.0,0.65586396]
[1767621820490,39.70771296,134.06,134.0,0.65586396]
[1767621820696,6.05649072,134.03,134.0,0.65586396]
[1767621821097,6.05649072,134.03,133.99,0.65586396]
[1767621821882,26.10771296,134.06,134.0,0.65586396]
[1767621822083,6.05649072,134.04,134.0,0.65586396]
[1767621823696,6.05649072,134.03,134.0,0.65586396]
[1767621823909,6.05649072,134.02,134.0,0.65586396]
[1767621824146,6.05649072,134.01,133.98,0.65586396]
[1767621825000,13.51865216,134.01,133.98,0.65586396]
[1767621825608,7.46216144,134.01,133.98,0.65586396]
[1767621825813,13.51865216,134.01,133.98,0.65586396]
[1767621826621,6.05649072,134.01,133.98,0.65586396]
[1767621826788,13.51867061,134.01,133.98,0.65586396]
[1767621826994,6.05649072,133.99,133.95,0.65586396]
[1767621827306,8.35013837,134.05,133.93,19.65649072]
[1767621827307,6.05649072,134.02,133.97,0.65586396]
[1767621827518,6.05649072,134.03,133.97,0.65586396]
[1767621828005,13.6,134.04,133.98,0.65586396]
[1767621828006,19.65649072,134.04,133.98,0.65586396]
[1767621828511,26.11413671,134.03,133.98,0.65586396]
[1767621829008,32.17062743,134.03,133.98,0.65586396]
[1767621830004,6.05649072,134.02,133.98,0.65586396]
[1767621830208,26.11413671,134.03,133.98,0.65586396]
[1767621830393,7.46212969,134.01,133.98,0.65586396]
[1767621831007,13.51862041,134.01,133.98,0.65586396]
[1767621832087,7.46212969,134.01,133.98,0.65586396]
[1767621834407,18.65312052,134.03,133.98,0.65586396]
[1767621834596,6.05649072,134.03,133.98,0.65586396]
[1767621835492,26.11160847,134.04,133.98,0.65586396]
[1767621835696,6.05649072,134.02,133.98,0.65586396]
[1767621836508,13.51862041,134.01,133.98,0.65586396]
[1767621836893,7.46212969,134.01,133.98,0.65586396]
[1767621837088,13.51862041,134.01,133.98,0.65586396]
[1767621837594,7.46212969,134.01,133.98,0.65586396]
[1767621839418,13.51862041,134.01,133.98,0.65586396]
[1767621840412,7.46212969,134.01,133.98,0.65586396]
[1767621841016,7.46212969,134.01,133.94,0.68727292]
[1767621841017,6.05649072,133.99,133.94,0.68727292]
[1767621841217,13.6,133.99,133.95,6.05649072]
[1767621841512,6.05649072,134.0,133.95,0.68727292]
[1767621841712,13.6,133.99,133.94,6.05649072]
[1767621842611,13.6,133.99,133.94,2.4712707]
[1767621842804,21.0636642,133.99,133.94,2.4712707]
[1767621843417,21.0636642,133.99,133.93,8.15355248]
[1767621843715,21.0636642,133.99,133.94,2.4712707]
[1767621844093,7.4636642,133.99,133.94,2.4712707]
[1767621844513,21.0636642,133.99,133.95,0.68727292]
[1767621844902,7.4636642,133.99,133.95,0.68727292]
[1767621845108,21.0636642,133.99,133.95,0.68727292]
[1767621847618,23.5349349,133.99,133.93,0.68727292]
[1767621847922,23.5349349,133.99,133.93,3.15854362]
[1767621849506,23.5349349,133.99,133.94,0.68727292]
[1767621850411,2.4712707,133.99,133.94,0.68727292]
[1767621850618,2.4712707,133.99,133.95,0.68727292]
[1767621850814,13.6,133.98,133.95,0.68727292]
[1767621851117,37.90544661,134.1,133.93,7.46652043]
[1767621851118,26.11355666,134.03,133.97,0.68727292]
[1767621851318,16.0712707,134.02,133.97,2.4712707]
[1767621851526,21.06185567,134.02,133.98,0.68727292]
[1767621852932,7.46185567,134.02,133.98,0.68727292]
[1767621853221,13.6,134.01,133.99,0.68727292]
[1767621855922,21.06220732,134.01,133.99,0.68727292]
[1767621856423,13.6,134.0,133.99,0.68727292]
[1767621859321,7.46185886,134.02,133.99,0.68727292]
[1767621859522,13.6,134.01,133.99,0.68727292]
[1767621860602,21.062273,134.01,133.99,0.68727292]
[1767621860802,37.2939702,134.07,133.99,0.68727292]
[1767621860803,18.65062788,134.05,133.99,0.68727292]
[1767621861026,17.45965477,134.04,133.99,0.68727292]
[1767621861520,13.6,134.03,133.99,0.68727292]
[1767621862619,3.85965477,134.04,133.99,0.68727292]
[1767621862826,21.06142043,134.03,133.99,0.68727292]
[1767621863322,21.06142043,134.03,134.0,0.68727292]
[1767621863323,20.75356126,134.03,134.0,0.68727292]
[1767621865026,13.6,134.02,134.0,0.68727292]
[1767621866505,7.46142043,134.03,134.0,0.68727292]
[1767621866506,7.46063406,134.04,134.0,0.68727292]
[1767621866700,13.6,134.03,134.0,0.68727292]
[1767621868411,21.06106794,134.03,134.0,0.68727292]
[1767621868611,7.46068105,134.04,134.0,0.68727292]
[1767621868817,13.6,134.03,134.0,0.68727292]
[1767621872226,21.06110179,134.03,134.0,0.68727292]
[1767621872429,24.92075656,134.03,134.0,0.68727292]
[1767621873209,13.6,134.02,134.0,0.68727292]
[1767621875930,21.06159517,134.02,134.0,0.68727292]
[1767621876436,13.6,134.02,134.0,4.54692769]
[1767621876659,7.46126147,134.03,134.0,0.68727292]
[1767621877023,13.6,134.02,134.0,0.68727292]
[1767621878715,17.72508314,134.08,133.97,7.46427849]
[1767621878716,7.45934656,134.06,134.02,0.65518893]
[1767621878935,7.45889349,134.07,134.04,0.65518893]
[1767621879235,37.28663163,134.1,134.06,0.65518893]
[1767621879236,3.85965477,134.1,134.06,0.65518893]
[1767621879434,13.6,134.08,134.06,0.65518893]
[1767621879822,29.96032066,134.1,134.06,0.65518893]
[1767621880138,17.45965477,134.08,134.04,0.65518893]
[1767621880343,3.85965477,134.08,134.04,0.65518893]
[1767621880520,13.6,134.07,134.04,0.65518893]
[1767621880717,17.45965477,134.07,134.02,4.5148437]
[1767621880935,3.85965477,134.05,134.01,0.65518893]
[1767621881144,13.6,134.04,134.0,3.85965477]
[1767621881521,13.6,134.04,134.01,0.65518893]
[1767621881724,7.46101619,134.03,134.01,0.65518893]
[1767621882027,13.6,134.04,134.01,0.65518893]
[1767621882028,21.0606394,134.04,134.01,0.65518893]
[1767621883039,45.63574612,134.1,134.01,0.65518893]
[1767621883235,3.85965477,134.06,134.01,0.65518893]
[1767621883426,13.6,134.05,134.01,0.65518893]
[1767621883735,3.85965477,134.05,134.01,0.65518893]
[1767621883945,21.06081368,134.04,134.01,0.65518893]
[1767621884427,17.45965477,134.06,134.02,0.65518893]
[1767621885017,13.6,134.05,134.02,0.65518893]
[1767621885846,21.06024483,134.05,134.02,0.65518893]
[1767621887443,63.39026025,134.09,134.02,0.65518893]
[1767621887741,3.85965477,134.06,134.02,0.65518893]
[1767621887918,11.3168601,134.1,134.05,0.65518893]
[1767621888114,3.85965477,134.09,134.05,0.65518893]
[1767621888331,3.85965477,134.08,134.05,0.65518893]
[1767621888532,3.85965477,134.07,134.05,0.65518893]
[1767621888730,13.6,134.08,134.05,0.65518893]
[1767621888933,17.45965477,134.08,134.05,0.65518893]
[1767621889143,13.6,134.08,134.05,0.65518893]
[1767621889335,17.45965477,134.08,134.05,0.65518893]
[1767621889742,21.0584972,134.08,134.05,0.65518893]
[1767621889938,24.91815197,134.08,134.05,0.65518893]
[1767621890526,3.85965477,134.06,134.02,0.65518893]
[1767621891024,3.85965477,134.07,134.03,0.65518893]
[1767621891425,43.56373669,134.08,134.03,0.65518893]
[1767621891839,17.45965477,134.07,134.03,0.65518893]
[1767621892253,3.85965477,134.06,134.01,4.51357753]
[1767621892548,13.6,134.05,134.02,0.65392276]
[1767621893825,21.060079,134.05,134.02,0.65392276]
[1767621894228,7.460079,134.05,134.02,0.65392276]
[1767621894448,7.45962144,134.06,134.02,0.65392276]
[1767621894754,7.45962144,134.06,134.03,4.51357753]
[1767621894755,13.6,134.06,134.03,4.51357753]
[1767621896142,13.6,134.06,134.03,0.65392276]
[1767621896345,7.45906723,134.07,134.03,0.65392276]
[1767621896856,7.45906723,134.07,134.04,0.65392276]
[1767621897048,21.05906723,134.07,134.04,0.65392276]
[1767621897251,7.45906723,134.07,134.04,0.65392276]
[1767621898346,18.64205987,134.11,134.06,0.65392276]
[1767621898538,17.45965477,134.1,134.06,0.65392276]
[1767621899762,3.85965477,134.08,134.04,0.65392276]
[1767621900057,17.45965477,134.08,134.04,0.65392276]
[1767621901247,3.85965477,134.07,134.04,0.65392276]
[1767621901437,21.05829419,134.08,134.04,0.65392276]
[1767621901637,24.91794896,134.08,134.04,0.65392276]
[1767621902254,21.05829419,134.08,134.04,0.65392276]
[1767621902445,17.45965477,134.08,134.04,0.65392276]
[1767621903258,13.6,134.08,134.05,0.66821243]
[1767621905054,11.3176057,134.09,134.05,0.66821243]
[1767621905254,24.9176057,134.09,134.05,0.66821243]
[1767621906062,3.85965477,134.08,134.05,0.66821243]
[1767621906562,24.9176057,134.09,134.05,0.66821243]
[1767621907262,3.85965477,134.08,134.05,0.66821243]
[1767621907566,24.9176057,134.09,134.05,0.66821243]
[1767621907739,7.45736495,134.1,134.06,0.66821243]
[1767621907944,13.6,134.09,134.06,0.66821243]
[1767621909451,24.91739258,134.09,134.06,0.66821243]
[1767621910563,7.45773781,134.09,134.06,0.66821243]
[1767621910747,11.31739258,134.09,134.06,0.66821243]
[1767621911853,7.45773781,134.09,134.06,0.66821243]
[1767621912054,21.05737341,134.1,134.06,0.66821243]
[1767621912547,3.85965477,134.09,134.06,0.66821243]
[1767621914567,11.31737331,134.09,134.06,0.66821243]
[1767621916967,7.45771854,134.09,134.06,0.66821243]
[1767621917169,21.05741089,134.1,134.06,0.66821243]
[1767621917466,11.31706566,134.1,134.06,0.66821243]
[1767621917669,24.91706566,134.1,134.06,0.66821243]
[1767621918366,21.05741089,134.1,134.06,0.66821243]
[1767621918667,24.91706566,134.1,134.06,0.66821243]
[1767621918867,21.05741089,134.1,134.06,0.66821243]
[1767621919074,0.1,134.13,134.08,0.66821243]
[1767621919368,0.1,134.13,134.09,0.66821243]
[1767621919558,3.95965477,134.13,134.09,0.66821243]
[1767621920269,0.1,134.13,134.09,0.66821243]
[1767621920470,3.95965477,134.13,134.09,0.66821243]
[1767621920672,0.1,134.13,134.09,0.66821243]
[1767621920852,2.56598251,134.13,134.09,0.66821243]
[1767621921683,0.1,134.13,134.09,0.66821243]
[1767621922654,0.1,134.13,134.1,0.66821243]
[1767621926179,0.1,134.13,134.1,0.63821244]
[1767621926369,2.56598251,134.13,134.1,0.63821244]
[1767621926565,0.02999999,134.11,134.07,2.46598251]
[1767621927077,9.92236573,134.12,134.07,2.46598251]
[1767621927971,2.46598251,134.11,134.05,2.46598251]
[1767621928175,16.06598251,134.11,134.06,0.66821243]
[1767621928992,9.95310405,134.1,134.06,0.66821243]
[1767621929777,28.59590792,134.1,134.06,0.66821243]
[1767621930558,2.4959825,134.09,134.05,0.66821243]
[1767621930759,2.46598251,134.08,134.05,0.66821243]
[1767621930953,23.52453381,134.08,134.05,0.66821243]
[1767621931362,2.46598251,134.07,134.05,0.66821243]
[1767621931567,13.6,134.08,134.06,0.72175173]
[1767621932082,21.05830217,134.08,134.06,0.72175173]
[1767621932883,7.45830217,134.08,134.06,0.72175173]
[1767621934277,23.52392906,134.09,134.06,0.72175173]
[1767621936286,23.52392906,134.09,134.03,2.46598251]
[1767621936287,2.46598251,134.08,134.05,0.72175173]
[1767621936772,7.48794654,134.09,134.05,0.72175173]
[1767621936973,13.6,134.08,134.05,0.72175173]
[1767621938291,7.45879018,134.07,134.05,0.72175173]
[1767621938486,16.06598251,134.08,134.05,0.72175173]
[1767621938487,23.5244805,134.08,134.05,0.72175173]
[1767621939487,23.55448049,134.08,134.04,0.72175173]
[1767621940084,21.05849799,134.08,134.04,0.72175173]
[1767621940286,2.46598251,134.07,134.04,0.72175173]
[1767621940883,2.4959825,134.07,134.04,0.72175173]
[1767621942274,7.45934656,134.06,134.04,0.72175173]
[1767621943272,9.92532907,134.06,134.03,0.72175173]
[1767621943782,23.55532906,134.06,134.01,0.72175173]
[1767621944205,2.46598251,134.05,134.01,0.72175173]
[1767621944867,9.92637076,134.05,134.01,0.72175173]
[1767621946363,2.46598251,134.03,134.01,0.72175173]
[1767621946977,9.92720769,134.03,134.01,0.72175173]
[1767621947970,7.46122518,134.03,134.01,0.72175173]